[Event "*** MasterClass Titled Tuesday Blitz"]
[Site "Chess.com"]
[Date "2017.07.04"]
[Round "6"]
[White "charlescandycampbell"]
[Black "jeaston1"]
[Result "0-1"]
[WhiteElo "2110"]
[BlackElo "2050"]
[TimeControl "180+2"]
[EndTime "14:19:36 PDT"]
[Termination "jeaston1 won by resignation"]

1. d4 {[%clk 0:03:01.9]} 1... d5 {[%clk 0:03:00.5]} 2. c4 {[%clk 0:03:00.3]}
2... dxc4 {[%clk 0:03:02.4]} 3. Nc3 {[%clk 0:03:00.9]} 3... a6 {[%clk
0:03:02.4]} 4. a4 {[%clk 0:03:00.6]} 4... Nc6 {[%clk 0:03:02.8]} 5. e3 {[%clk
0:03:00.8]} 5... Na5 {[%clk 0:03:03.2]} 6. Nf3 {[%clk 0:02:55.9]} 6... Nf6
{[%clk 0:02:49.7]} 7. Ne5 {[%clk 0:02:55.9]} 7... Be6 {[%clk 0:02:47.4]} 8. e4
{[%clk 0:02:55.8]} 8... c6 {[%clk 0:02:47.8]} 9. Be3 {[%clk 0:02:34.6]} 9... g6
{[%clk 0:02:32.7]} 10. Be2 {[%clk 0:02:33.5]} 10... Bg7 {[%clk 0:02:32.1]} 11.
O-O {[%clk 0:02:34.4]} 11... O-O {[%clk 0:02:30.9]} 12. f4 {[%clk 0:02:34.7]}
12... Qb6 {[%clk 0:02:24]} 13. Qc2 {[%clk 0:02:29.3]} 13... Rad8 {[%clk
0:02:08.5]} 14. Rf3 {[%clk 0:02:29.3]} 14... Nb3 {[%clk 0:02:03.7]} 15. Rd1
{[%clk 0:02:24.4]} 15... Nxd4 {[%clk 0:02:03.9]} 16. Bxd4 {[%clk 0:02:09.8]}
16... Rxd4 {[%clk 0:02:03.2]} 17. Kf1 {[%clk 0:02:08.5]} 17... Rxd1+ {[%clk
0:02:03.5]} 18. Qxd1 {[%clk 0:02:09.1]} 18... Ng4 {[%clk 0:02:00.9]} 19. Bxc4
{[%clk 0:01:43.7]} 19... Nxh2+ {[%clk 0:01:56]} 20. Ke2 {[%clk 0:01:43.6]} 20...
Nxf3 {[%clk 0:01:55.3]} 21. gxf3 {[%clk 0:01:41.3]} 21... Bxe5 {[%clk
0:01:55.3]} 22. Bxe6 {[%clk 0:01:41.4]} 22... Bxc3 {[%clk 0:01:56.2]} 23. Bxf7+
{[%clk 0:01:31.1]} 23... Rxf7 {[%clk 0:01:51.1]} 24. bxc3 {[%clk 0:01:33]} 24...
Qc7 {[%clk 0:01:49.5]} 25. Qb3 {[%clk 0:01:30.1]} 25... Qxf4 {[%clk 0:01:49.6]}
26. c4 {[%clk 0:01:29.6]} 26... Qxf3+ {[%clk 0:01:50.6]} 27. Qxf3 {[%clk
0:01:30]} 27... Rxf3 {[%clk 0:01:52.2]} 28. Kxf3 {[%clk 0:01:31.2]} 28... e5
{[%clk 0:01:53.8]} 29. a5 {[%clk 0:01:29.2]} 29... h6 {[%clk 0:01:54.5]} 30. Kg4
{[%clk 0:01:30]} 30... Kf7 {[%clk 0:01:56.1]} 31. c5 {[%clk 0:01:31]} 31... Kf6
{[%clk 0:01:57.9]} 32. Kh4 {[%clk 0:01:31.9]} 32... h5 {[%clk 0:01:58.3]} 33.
Kg3 {[%clk 0:01:32.7]} 33... Kg5 {[%clk 0:02:00.2]} 34. Kf3 {[%clk 0:01:32.9]}
34... h4 {[%clk 0:02:01.2]} 35. Ke3 {[%clk 0:01:33.6]} 35... Kg4 {[%clk
0:02:03.1]} 36. Kd3 {[%clk 0:01:33.8]} 36... Kf3 {[%clk 0:02:04.3]} 37. Kc4
{[%clk 0:01:34.6]} 37... Kxe4 {[%clk 0:02:06.2]} 38. Kc3 {[%clk 0:01:35.8]}
38... Kd5 {[%clk 0:02:08.1]} 39. Kb4 {[%clk 0:01:36.2]} 39... e4 {[%clk
0:02:08]} 40. Kc3 {[%clk 0:01:36.4]} 40... Kxc5 {[%clk 0:02:09.9]} 41. Kd2
{[%clk 0:01:37.3]} 41... Kb5 {[%clk 0:02:11.8]} 42. Ke3 {[%clk 0:01:38.4]} 42...
Kxa5 {[%clk 0:02:13.7]} 43. Kxe4 {[%clk 0:01:40]} 43... h3 {[%clk 0:02:15.6]}
44. Kf3 {[%clk 0:01:41.2]} 44... g5 {[%clk 0:02:17.2]} 45. Kg3 {[%clk
0:01:42.5]} 45... g4 {[%clk 0:02:18.5]} 46. Kh2 {[%clk 0:01:43.7]} 46... c5
{[%clk 0:02:19.6]} 47. Kg3 {[%clk 0:01:44.8]} 47... c4 {[%clk 0:02:21]} 48. Kxg4
{[%clk 0:01:46.3]} 48... h2 {[%clk 0:02:22.2]} 49. Kf3 {[%clk 0:01:47.6]} 49...
h1=Q+ {[%clk 0:02:24.1]} 50. Kf4 {[%clk 0:01:49.1]} 50... c3 {[%clk 0:02:25.5]}
51. Ke3 {[%clk 0:01:49.7]} 51... c2 {[%clk 0:02:26.9]} 0-1

[Event "*** MasterClass Titled Tuesday Blitz"]
[Site "Chess.com"]
[Date "2017.07.04"]
[Round "6"]
[White "dolynachess"]
[Black "merillium"]
[Result "1-0"]
[WhiteElo "2339"]
[BlackElo "2329"]
[TimeControl "180+2"]
[EndTime "14:20:27 PDT"]
[Termination "dolynachess won by resignation"]

1. c4 {[%clk 0:03:01.9]} 1... e5 {[%clk 0:02:58.8]} 2. g3 {[%clk 0:03:01.3]}
2... f5 {[%clk 0:02:59.4]} 3. Bg2 {[%clk 0:03:01.6]} 3... Nc6 {[%clk 0:02:57.2]}
4. Nc3 {[%clk 0:03:02.8]} 4... Nf6 {[%clk 0:02:58.2]} 5. d3 {[%clk 0:03:02.3]}
5... g6 {[%clk 0:02:57]} 6. Bg5 {[%clk 0:03:01.4]} 6... Bg7 {[%clk 0:02:55.3]}
7. Nd5 {[%clk 0:03:01.5]} 7... h6 {[%clk 0:02:55.7]} 8. Bxf6 {[%clk 0:03:01.5]}
8... Bxf6 {[%clk 0:02:56.6]} 9. Nxf6+ {[%clk 0:02:57.9]} 9... Qxf6 {[%clk
0:02:56.7]} 10. e3 {[%clk 0:02:52]} 10... d6 {[%clk 0:02:56.8]} 11. Ne2 {[%clk
0:02:52.8]} 11... Bd7 {[%clk 0:02:53.7]} 12. a3 {[%clk 0:02:44.8]} 12... O-O
{[%clk 0:02:50.5]} 13. O-O {[%clk 0:02:37.3]} 13... Kg7 {[%clk 0:02:49]} 14. b4
{[%clk 0:02:34.7]} 14... Rab8 {[%clk 0:02:49.1]} 15. Qa4 {[%clk 0:02:28.9]}
15... Rf7 {[%clk 0:02:37.9]} 16. b5 {[%clk 0:02:28]} 16... Ne7 {[%clk 0:02:33]}
17. Qxa7 {[%clk 0:02:27.9]} 17... Rc8 {[%clk 0:02:23.6]} 18. Bxb7 {[%clk
0:02:26.7]} 18... f4 {[%clk 0:02:20.8]} 19. exf4 {[%clk 0:02:24.2]} 19... Bh3
{[%clk 0:02:19.8]} 20. fxe5 {[%clk 0:01:58.7]} 20... dxe5 {[%clk 0:02:15.2]} 21.
Qc5 {[%clk 0:01:28.9]} 21... c6 {[%clk 0:02:10.5]} 22. f4 {[%clk 0:01:06.1]}
22... Bxf1 {[%clk 0:02:03.2]} 23. Rxf1 {[%clk 0:01:05.1]} 23... Rc7 {[%clk
0:01:52.5]} 24. bxc6 {[%clk 0:00:47.6]} 24... Nxc6 {[%clk 0:01:52]} 25. Bxc6
{[%clk 0:00:47.3]} 25... Rxc6 {[%clk 0:01:48.3]} 26. Qxe5 {[%clk 0:00:48]} 26...
Ra7 {[%clk 0:01:47.1]} 27. Nd4 {[%clk 0:00:27.4]} 27... Rca6 {[%clk 0:01:41]}
28. Nb5 {[%clk 0:00:25.7]} 28... Rd7 {[%clk 0:01:39.3]} 29. Qxf6+ {[%clk
0:00:23.3]} 29... Kxf6 {[%clk 0:01:38.9]} 30. d4 {[%clk 0:00:24.3]} 30... Ra4
{[%clk 0:01:38]} 31. Rc1 {[%clk 0:00:24.4]} 31... Rb7 {[%clk 0:01:38.2]} 32. Kf2
{[%clk 0:00:24.7]} 32... Kf5 {[%clk 0:01:36.1]} 33. Nd6+ {[%clk 0:00:23.6]} 1-0

[Event "*** MasterClass Titled Tuesday Blitz"]
[Site "Chess.com"]
[Date "2017.07.04"]
[Round "6"]
[White "Malev212"]
[Black "BigMak2500"]
[Result "0-1"]
[WhiteElo "2507"]
[BlackElo "2406"]
[TimeControl "180+2"]
[EndTime "14:20:33 PDT"]
[Termination "BigMak2500 won by resignation"]

1. e4 {[%clk 0:03:01.9]} 1... e5 {[%clk 0:02:58.2]} 2. Nf3 {[%clk 0:03:01.9]}
2... Nc6 {[%clk 0:02:58.8]} 3. Bc4 {[%clk 0:03:01.8]} 3... Bc5 {[%clk
0:02:58.4]} 4. d3 {[%clk 0:02:58.9]} 4... h6 {[%clk 0:02:53.6]} 5. Nc3 {[%clk
0:02:58.9]} 5... Nf6 {[%clk 0:02:52.8]} 6. O-O {[%clk 0:02:56.1]} 6... d6 {[%clk
0:02:53.8]} 7. Na4 {[%clk 0:02:52.9]} 7... Bb6 {[%clk 0:02:51.8]} 8. Nxb6 {[%clk
0:02:52]} 8... axb6 {[%clk 0:02:53.7]} 9. h3 {[%clk 0:02:52]} 9... O-O {[%clk
0:02:54.9]} 10. a3 {[%clk 0:02:49.1]} 10... Be6 {[%clk 0:02:55.3]} 11. Bxe6
{[%clk 0:02:42.1]} 11... fxe6 {[%clk 0:02:57.2]} 12. c4 {[%clk 0:02:40.8]} 12...
Qe8 {[%clk 0:02:53.3]} 13. Bd2 {[%clk 0:02:37.1]} 13... Qg6 {[%clk 0:02:48.9]}
14. Nh4 {[%clk 0:02:34.5]} 14... Qf7 {[%clk 0:02:44.7]} 15. Be3 {[%clk
0:02:28.9]} 15... d5 {[%clk 0:02:42.5]} 16. exd5 {[%clk 0:02:26.7]} 16... exd5
{[%clk 0:02:43.4]} 17. Rc1 {[%clk 0:02:17.2]} 17... d4 {[%clk 0:02:36.6]} 18.
Bd2 {[%clk 0:02:16.4]} 18... e4 {[%clk 0:02:36.9]} 19. Nf5 {[%clk 0:01:56.3]}
19... Kh7 {[%clk 0:02:09.9]} 20. Ng3 {[%clk 0:01:51.1]} 20... Rae8 {[%clk
0:02:03.2]} 21. dxe4 {[%clk 0:01:49.1]} 21... Nxe4 {[%clk 0:02:03.3]} 22. Qc2
{[%clk 0:01:47.8]} 22... Qg6 {[%clk 0:01:58]} 23. Nxe4 {[%clk 0:01:47.6]} 23...
Rxe4 {[%clk 0:01:48]} 24. Rce1 {[%clk 0:01:47.2]} 24... Rfe8 {[%clk 0:01:44.1]}
25. Rxe4 {[%clk 0:01:43]} 25... Rxe4 {[%clk 0:01:46]} 26. f3 {[%clk 0:01:32.9]}
26... Re7 {[%clk 0:01:41.2]} 27. Qxg6+ {[%clk 0:01:30.8]} 27... Kxg6 {[%clk
0:01:43.1]} 28. Bf4 {[%clk 0:01:29.4]} 28... Na5 {[%clk 0:01:37.9]} 29. Rd1
{[%clk 0:01:11.9]} 29... c5 {[%clk 0:01:32.7]} 30. b4 {[%clk 0:01:11.5]} 30...
Nxc4 {[%clk 0:01:28.9]} 31. Kf2 {[%clk 0:01:06.5]} 31... Rd7 {[%clk 0:01:23.2]}
32. Rc1 {[%clk 0:01:00]} 32... Nb2 {[%clk 0:01:20.3]} 33. Ke2 {[%clk 0:00:58.7]}
33... Re7+ {[%clk 0:01:14.6]} 34. Kd2 {[%clk 0:00:57.7]} 34... c4 {[%clk
0:01:11]} 0-1

[Event "*** MasterClass Titled Tuesday Blitz"]
[Site "Chess.com"]
[Date "2017.07.04"]
[Round "6"]
[White "IljaZaragatski"]
[Black "Yaacovn"]
[Result "1-0"]
[WhiteElo "2437"]
[BlackElo "2648"]
[TimeControl "180+2"]
[EndTime "14:20:46 PDT"]
[Termination "IljaZaragatski won by resignation"]

1. Nf3 {[%clk 0:03:01.9]} 1... Nf6 {[%clk 0:02:59.4]} 2. g3 {[%clk 0:03:03]}
2... b6 {[%clk 0:03:00.2]} 3. Bg2 {[%clk 0:03:03.9]} 3... Bb7 {[%clk 0:03:01.7]}
4. O-O {[%clk 0:03:05.6]} 4... g6 {[%clk 0:03:02.6]} 5. c4 {[%clk 0:03:05.7]}
5... Bg7 {[%clk 0:02:59.6]} 6. d4 {[%clk 0:03:06.7]} 6... O-O {[%clk 0:03:00.4]}
7. d5 {[%clk 0:03:07.8]} 7... b5 {[%clk 0:02:58.3]} 8. cxb5 {[%clk 0:02:53.2]}
8... Bxd5 {[%clk 0:02:52.2]} 9. Nc3 {[%clk 0:02:53.7]} 9... Bb7 {[%clk
0:02:52.9]} 10. Bg5 {[%clk 0:02:41.7]} 10... a6 {[%clk 0:02:46.9]} 11. a4 {[%clk
0:02:31.1]} 11... axb5 {[%clk 0:02:47.4]} 12. axb5 {[%clk 0:02:33]} 12... c5
{[%clk 0:02:31.5]} 13. Rxa8 {[%clk 0:02:26.8]} 13... Bxa8 {[%clk 0:02:32.3]} 14.
Qa4 {[%clk 0:02:28.4]} 14... Bb7 {[%clk 0:02:29.7]} 15. Qh4 {[%clk 0:02:28]}
15... d6 {[%clk 0:02:29.3]} 16. Bh6 {[%clk 0:02:24.7]} 16... Nbd7 {[%clk
0:02:25.6]} 17. Ng5 {[%clk 0:02:25.8]} 17... Bxg2 {[%clk 0:02:25.5]} 18. Kxg2
{[%clk 0:02:27.7]} 18... Qa8+ {[%clk 0:02:22.7]} 19. f3 {[%clk 0:02:26.7]} 19...
Rb8 {[%clk 0:02:15.2]} 20. Rd1 {[%clk 0:02:23.9]} 20... Nf8 {[%clk 0:02:06.3]}
21. Bxg7 {[%clk 0:02:01.7]} 21... Kxg7 {[%clk 0:02:06.5]} 22. Qc4 {[%clk
0:02:01.2]} 22... e6 {[%clk 0:01:38.4]} 23. Rxd6 {[%clk 0:01:59.5]} 23... Qa1
{[%clk 0:01:39.8]} 24. Rd2 {[%clk 0:01:23.2]} 24... Qc1 {[%clk 0:01:36.5]} 25.
Qf4 {[%clk 0:01:16.7]} 25... h6 {[%clk 0:01:19.5]} 26. Nxf7 {[%clk 0:01:10.4]}
26... g5 {[%clk 0:01:03]} 27. Nxg5 {[%clk 0:01:05.8]} 27... Kg6 {[%clk
0:00:40.8]} 28. Nge4 {[%clk 0:00:55]} 28... Nxe4 {[%clk 0:00:39.4]} 29. Nxe4
{[%clk 0:00:56.9]} 1-0

[Event "*** MasterClass Titled Tuesday Blitz"]
[Site "Chess.com"]
[Date "2017.07.04"]
[Round "6"]
[White "x-3738459472"]
[Black "spirals5"]
[Result "0-1"]
[WhiteElo "2447"]
[BlackElo "2393"]
[TimeControl "180+2"]
[EndTime "14:21:00 PDT"]
[Termination "spirals5 won by resignation"]

1. e4 {[%clk 0:02:49.2]} 1... c5 {[%clk 0:03:00.3]} 2. Nf3 {[%clk 0:02:48.6]}
2... d6 {[%clk 0:03:00.7]} 3. d4 {[%clk 0:02:47.7]} 3... cxd4 {[%clk 0:03:01]}
4. Nxd4 {[%clk 0:02:49.6]} 4... Nf6 {[%clk 0:03:01.2]} 5. Nc3 {[%clk 0:02:50.3]}
5... a6 {[%clk 0:03:02]} 6. Bg5 {[%clk 0:02:49.1]} 6... Nbd7 {[%clk 0:03:01.8]}
7. Qe2 {[%clk 0:02:49.2]} 7... h6 {[%clk 0:03:01.4]} 8. Bh4 {[%clk 0:02:47.5]}
8... e6 {[%clk 0:03:00.7]} 9. f4 {[%clk 0:02:40.6]} 9... Be7 {[%clk 0:02:59.6]}
10. e5 {[%clk 0:02:36.5]} 10... dxe5 {[%clk 0:02:59.7]} 11. fxe5 {[%clk
0:02:36.5]} 11... Nd5 {[%clk 0:02:56.1]} 12. Bxe7 {[%clk 0:02:36.5]} 12... Nxc3
{[%clk 0:02:42]} 13. Bxd8 {[%clk 0:02:27.5]} 13... Nxe2 {[%clk 0:02:40.7]} 14.
Bxe2 {[%clk 0:02:10.5]} 14... Kxd8 {[%clk 0:02:40.3]} 15. O-O-O {[%clk 0:02:10]}
15... Ke7 {[%clk 0:02:37.6]} 16. Nf3 {[%clk 0:02:03.5]} 16... b5 {[%clk
0:02:33.4]} 17. Rd2 {[%clk 0:01:57]} 17... Bb7 {[%clk 0:02:33.5]} 18. Rhd1
{[%clk 0:01:57.5]} 18... Rhd8 {[%clk 0:02:15.9]} 19. Rd6 {[%clk 0:01:54.5]}
19... Bxf3 {[%clk 0:01:46.6]} 20. Bxf3 {[%clk 0:01:54]} 20... Nxe5 {[%clk
0:01:46.5]} 21. Rb6 {[%clk 0:01:48.3]} 21... Rxd1+ {[%clk 0:01:44.4]} 22. Kxd1
{[%clk 0:01:48]} 22... Nxf3 {[%clk 0:01:43.2]} 23. gxf3 {[%clk 0:01:42.9]} 23...
Ra7 {[%clk 0:01:41.7]} 24. a4 {[%clk 0:01:37.5]} 24... bxa4 {[%clk 0:01:38.5]}
25. Rb4 {[%clk 0:01:37.4]} 25... g5 {[%clk 0:01:32.4]} 26. Rxa4 {[%clk 0:01:37]}
26... f5 {[%clk 0:01:28.5]} 27. b4 {[%clk 0:01:36]} 27... Kf6 {[%clk 0:01:27.7]}
28. b5 {[%clk 0:01:34.5]} 28... Rd7+ {[%clk 0:01:26.6]} 29. Ke2 {[%clk
0:01:34.9]} 29... axb5 {[%clk 0:01:26.5]} 30. Rb4 {[%clk 0:01:34.9]} 30... Rd5
{[%clk 0:01:26.3]} 31. c4 {[%clk 0:01:33.3]} 31... bxc4 {[%clk 0:01:25]} 32.
Rxc4 {[%clk 0:01:32.3]} 32... Ra5 {[%clk 0:01:24.7]} 33. Kf2 {[%clk 0:01:31.1]}
33... h5 {[%clk 0:01:21.6]} 34. h4 {[%clk 0:01:29.1]} 34... g4 {[%clk
0:01:19.7]} 35. fxg4 {[%clk 0:01:27.2]} 35... hxg4 {[%clk 0:01:20]} 36. Rc8
{[%clk 0:01:26.4]} 36... Ra2+ {[%clk 0:01:19.5]} 37. Kg3 {[%clk 0:01:26.4]}
37... Ra3+ {[%clk 0:01:17.7]} 38. Kg2 {[%clk 0:01:26.5]} 38... Rh3 {[%clk
0:01:16.4]} 39. Rh8 {[%clk 0:01:25.7]} 39... f4 {[%clk 0:01:09.7]} 40. h5 {[%clk
0:01:25.4]} 40... Kg5 {[%clk 0:01:03.7]} 41. Re8 {[%clk 0:01:22.1]} 41... Kxh5
{[%clk 0:00:57.7]} 42. Rxe6 {[%clk 0:01:22.2]} 42... Ra3 {[%clk 0:00:48.7]} 43.
Re8 {[%clk 0:01:22.1]} 43... Ra2+ {[%clk 0:00:47.7]} 0-1

[Event "*** MasterClass Titled Tuesday Blitz"]
[Site "Chess.com"]
[Date "2017.07.04"]
[Round "6"]
[White "platy3"]
[Black "escher"]
[Result "1-0"]
[WhiteElo "2611"]
[BlackElo "2040"]
[TimeControl "180+2"]
[EndTime "14:21:01 PDT"]
[Termination "platy3 won by resignation"]

1. e4 {[%clk 0:02:49.1]} 1... c5 {[%clk 0:03:00.3]} 2. Nf3 {[%clk 0:02:41.9]}
2... Nc6 {[%clk 0:03:00.7]} 3. Bb5 {[%clk 0:02:35.4]} 3... g6 {[%clk 0:02:59.8]}
4. O-O {[%clk 0:02:35]} 4... Bg7 {[%clk 0:02:59.3]} 5. Re1 {[%clk 0:02:35.7]}
5... e5 {[%clk 0:02:56.9]} 6. b4 {[%clk 0:02:35.9]} 6... cxb4 {[%clk 0:02:52]}
7. a3 {[%clk 0:02:36.8]} 7... Nd4 {[%clk 0:02:43.5]} 8. Nxd4 {[%clk 0:02:33.2]}
8... exd4 {[%clk 0:02:44.5]} 9. axb4 {[%clk 0:02:29]} 9... Ne7 {[%clk
0:02:38.9]} 10. d3 {[%clk 0:02:16.4]} 10... O-O {[%clk 0:02:30.3]} 11. Nd2
{[%clk 0:02:13.6]} 11... d5 {[%clk 0:02:24.2]} 12. e5 {[%clk 0:02:02.1]} 12...
Bd7 {[%clk 0:02:19]} 13. Bxd7 {[%clk 0:02:01.7]} 13... Qxd7 {[%clk 0:02:19.9]}
14. Nf3 {[%clk 0:02:03.3]} 14... Nc6 {[%clk 0:02:20.4]} 15. b5 {[%clk
0:02:00.6]} 15... Ne7 {[%clk 0:01:52]} 16. Nxd4 {[%clk 0:01:58.8]} 16... Nf5
{[%clk 0:01:51.9]} 17. Nxf5 {[%clk 0:01:55.4]} 17... Qxf5 {[%clk 0:01:53.9]} 18.
Bb2 {[%clk 0:01:56.2]} 18... Qd7 {[%clk 0:01:52.8]} 19. c4 {[%clk 0:01:39]}
19... d4 {[%clk 0:01:48.7]} 20. Qf3 {[%clk 0:01:32.1]} 20... Rfe8 {[%clk
0:01:37.3]} 21. e6 {[%clk 0:01:28.6]} 21... Rxe6 {[%clk 0:01:32.2]} 22. Rxe6
{[%clk 0:01:27.7]} 22... fxe6 {[%clk 0:01:33.3]} 23. Qe4 {[%clk 0:01:28.3]}
23... e5 {[%clk 0:01:32]} 24. Bc1 {[%clk 0:01:26.8]} 24... Qf7 {[%clk
0:01:25.6]} 25. Bd2 {[%clk 0:01:24.9]} 25... Rf8 {[%clk 0:01:22.7]} 26. f3
{[%clk 0:01:25.1]} 26... b6 {[%clk 0:01:23.2]} 27. Bb4 {[%clk 0:01:24.8]} 27...
Rc8 {[%clk 0:01:17.9]} 28. Kf2 {[%clk 0:01:11]} 28... Qe6 {[%clk 0:01:10.1]} 29.
Rxa7 {[%clk 0:01:10.3]} 29... Bf6 {[%clk 0:00:57]} 30. Ra8 {[%clk 0:00:45.8]}
30... Kg7 {[%clk 0:00:44.6]} 31. Qb7+ {[%clk 0:00:45]} 1-0

[Event "*** MasterClass Titled Tuesday Blitz"]
[Site "Chess.com"]
[Date "2017.07.04"]
[Round "6"]
[White "playablecharacter"]
[Black "CraiggoryC"]
[Result "1-0"]
[WhiteElo "2021"]
[BlackElo "2053"]
[TimeControl "180+2"]
[EndTime "14:21:05 PDT"]
[Termination "playablecharacter won by resignation"]

1. d4 {[%clk 0:03:01.9]} 1... Nf6 {[%clk 0:02:59.8]} 2. c4 {[%clk 0:03:00]} 2...
c6 {[%clk 0:03:00.6]} 3. Nc3 {[%clk 0:02:58.5]} 3... d5 {[%clk 0:03:01.3]} 4. e3
{[%clk 0:02:55.7]} 4... e6 {[%clk 0:02:59.4]} 5. Nf3 {[%clk 0:02:53.3]} 5...
Nbd7 {[%clk 0:02:59.3]} 6. Bd3 {[%clk 0:02:48.8]} 6... dxc4 {[%clk 0:02:59.5]}
7. Bxc4 {[%clk 0:02:50.7]} 7... b5 {[%clk 0:03:00.8]} 8. Be2 {[%clk 0:02:48.6]}
8... Bb7 {[%clk 0:02:50.5]} 9. O-O {[%clk 0:02:48.3]} 9... a6 {[%clk 0:02:30.1]}
10. e4 {[%clk 0:02:45.1]} 10... c5 {[%clk 0:02:22.8]} 11. e5 {[%clk 0:02:45.1]}
11... cxd4 {[%clk 0:02:14.7]} 12. Qxd4 {[%clk 0:02:33.9]} 12... Bc5 {[%clk
0:02:03.7]} 13. Qf4 {[%clk 0:02:26.1]} 13... Nd5 {[%clk 0:01:58.8]} 14. Qg3
{[%clk 0:02:07.6]} 14... Nxc3 {[%clk 0:01:42.9]} 15. bxc3 {[%clk 0:01:47.8]}
15... g6 {[%clk 0:01:34.6]} 16. Bh6 {[%clk 0:01:45.9]} 16... Qc7 {[%clk
0:01:24.2]} 17. a4 {[%clk 0:01:44]} 17... O-O-O {[%clk 0:01:01]} 18. axb5 {[%clk
0:01:41.5]} 18... axb5 {[%clk 0:01:02.9]} 19. Bxb5 {[%clk 0:01:37.8]} 19... Nb6
{[%clk 0:00:30.2]} 20. Rfb1 {[%clk 0:01:28.7]} 20... Be4 {[%clk 0:00:21.2]} 21.
Ba6+ {[%clk 0:01:25.4]} 21... Kb8 {[%clk 0:00:19.1]} 22. Rb3 {[%clk 0:01:20.6]}
22... Bd5 {[%clk 0:00:13.8]} 23. Rb2 {[%clk 0:01:21.3]} 23... Bb7 {[%clk
0:00:11.9]} 24. Bxb7 {[%clk 0:01:18.1]} 24... Kxb7 {[%clk 0:00:13.2]} 25. Rab1
{[%clk 0:01:16.1]} 25... Kc8 {[%clk 0:00:11.8]} 26. Nd2 {[%clk 0:01:11]} 26...
Rd5 {[%clk 0:00:10.1]} 27. c4 {[%clk 0:01:07.9]} 27... Rxe5 {[%clk 0:00:10.2]}
28. Bf4 {[%clk 0:01:07.2]} 28... f6 {[%clk 0:00:10.3]} 29. Bxe5 {[%clk 0:01:08]}
29... fxe5 {[%clk 0:00:11.2]} 30. Nf3 {[%clk 0:01:07.8]} 30... Rd8 {[%clk
0:00:10.4]} 31. Qxe5 {[%clk 0:01:07.8]} 31... Nxc4 {[%clk 0:00:08.8]} 32. Qxc7+
{[%clk 0:01:07.8]} 32... Kxc7 {[%clk 0:00:09.6]} 33. Rc2 {[%clk 0:01:09.5]} 1-0

[Event "*** MasterClass Titled Tuesday Blitz"]
[Site "Chess.com"]
[Date "2017.07.04"]
[Round "6"]
[White "Fy_Rakotomaharo"]
[Black "Indianlad"]
[Result "0-1"]
[WhiteElo "2367"]
[BlackElo "2519"]
[TimeControl "180+2"]
[EndTime "14:21:06 PDT"]
[Termination "Indianlad won by resignation"]

1. d4 {[%clk 0:03:01.9]} 1... g6 {[%clk 0:03:01.9]} 2. c4 {[%clk 0:03:01.4]}
2... Bg7 {[%clk 0:03:01.5]} 3. e4 {[%clk 0:03:02.9]} 3... d6 {[%clk 0:03:00.7]}
4. Nc3 {[%clk 0:03:03.1]} 4... Nf6 {[%clk 0:03:02.6]} 5. Be2 {[%clk 0:03:04.1]}
5... O-O {[%clk 0:03:02.9]} 6. Bg5 {[%clk 0:03:04.6]} 6... Na6 {[%clk
0:03:04.1]} 7. Nf3 {[%clk 0:03:02.9]} 7... c6 {[%clk 0:03:05]} 8. O-O {[%clk
0:03:01.6]} 8... e5 {[%clk 0:03:05.4]} 9. Re1 {[%clk 0:02:54.7]} 9... exd4
{[%clk 0:03:05.2]} 10. Nxd4 {[%clk 0:02:54.2]} 10... Re8 {[%clk 0:03:06]} 11.
Bf1 {[%clk 0:02:46.7]} 11... Nc5 {[%clk 0:03:06.5]} 12. Qc2 {[%clk 0:02:22.2]}
12... h6 {[%clk 0:03:05.6]} 13. Bh4 {[%clk 0:02:22.9]} 13... g5 {[%clk
0:02:36.4]} 14. Bg3 {[%clk 0:02:22.9]} 14... Nh5 {[%clk 0:02:34.6]} 15. Rad1
{[%clk 0:02:17.5]} 15... Nxg3 {[%clk 0:02:33.9]} 16. hxg3 {[%clk 0:02:17.8]}
16... Bg4 {[%clk 0:02:08.8]} 17. Be2 {[%clk 0:02:05.2]} 17... Bd7 {[%clk
0:02:08.8]} 18. Bh5 {[%clk 0:02:01.4]} 18... Qf6 {[%clk 0:02:07.2]} 19. Qe2
{[%clk 0:01:03]} 19... a5 {[%clk 0:01:40.3]} 20. Bg4 {[%clk 0:00:57.3]} 20...
Be6 {[%clk 0:01:40.9]} 21. Bf5 {[%clk 0:00:47.3]} 21... a4 {[%clk 0:01:37.4]}
22. Qc2 {[%clk 0:00:36.5]} 22... Qe7 {[%clk 0:01:34.4]} 23. b4 {[%clk
0:00:30.3]} 23... axb3 {[%clk 0:01:33.6]} 24. axb3 {[%clk 0:00:19.1]} 24... Bxd4
{[%clk 0:01:33.8]} 25. Nd5 {[%clk 0:00:09.4]} 25... cxd5 {[%clk 0:01:30.3]} 26.
exd5 {[%clk 0:00:10.7]} 26... Bxf5 {[%clk 0:01:30.9]} 27. Qxf5 {[%clk
0:00:11.6]} 27... Qxe1+ {[%clk 0:01:29.5]} 28. Rxe1 {[%clk 0:00:12.7]} 28...
Rxe1+ {[%clk 0:01:31.4]} 29. Kh2 {[%clk 0:00:14.6]} 29... Raa1 {[%clk
0:01:33.3]} 30. g4 {[%clk 0:00:14.3]} 30... Ne4 {[%clk 0:01:33]} 31. g3 {[%clk
0:00:10.7]} 31... Nd2 {[%clk 0:01:33.2]} 0-1